fUSD/lending_fUSD_20250512
["ID","MTS","AMOUNT","RATE_DAILY","PERIOD"]
[360835895,1747060822386,-253.89458218,0.00012004,2]
[360835898,1747060828227,-223.8513814,0.00012004,2]
[360835900,1747060833765,-152.30856921,0.00012004,2]
[360835903,1747060839075,-194.30561396,0.00012003,2]
[360835904,1747060852590,-244.04296654,0.00012003,2]
[360835907,1747060865122,-152.83507103,0.00012002,2]
[360835908,1747060868458,1081.68,9.997e-05,2]
[360835909,1747060870394,-147.16492897,0.00012002,2]
[360835911,1747060870427,-27.81623116,0.00012003,2]
[360835913,1747060882398,-78.78328503,0.00012003,2]
[360835914,1747060882432,-139.21272148,0.00012003,2]
[360835915,1747060888067,-405.73537521,0.00012003,2]
[360835916,1747060888108,-544.94809669,0.00012003,2]
[360835917,1747060888151,-544.94809669,0.00012003,2]
[360835918,1747060888186,-544.94809669,0.00012003,2]
[360835919,1747060888224,-544.94809669,0.00012003,2]
[360835920,1747060888262,-544.94809669,0.00012003,2]
[360835921,1747060888300,-544.94809669,0.00012003,2]
[360835922,1747060888340,-544.94809669,0.00012003,2]
[360835923,1747060888376,-544.94809669,0.00012003,2]
[360835924,1747060888411,-544.94809669,0.00012003,2]
[360835925,1747060888446,-544.94809669,0.00012003,2]
[360835926,1747060888479,-544.94809669,0.00012003,2]
[360835927,1747060888514,-544.94809669,0.00012003,2]
[360835928,1747060888549,-544.94809669,0.00012003,2]
[360835929,1747060888584,-544.94809669,0.00012003,2]
[360835930,1747060888619,-544.94809669,0.00012003,2]
[360835931,1747060888656,-544.94809669,0.00012003,2]
[360835932,1747060888694,-544.94809669,0.00012003,2]
[360835933,1747060888729,-544.94809669,0.00012003,2]
[360835934,1747060888762,-544.94809669,0.00012003,2]
[360835935,1747060888796,-544.94809669,0.00012003,2]
[360835936,1747060888830,-544.94809669,0.00012003,2]
[360835937,1747060888863,-544.94809669,0.00012003,2]
[360835938,1747060888899,-544.94809669,0.00012003,2]
[360835939,1747060888937,-544.94809669,0.00012003,2]
[360835940,1747060888970,-544.94809669,0.00012003,2]
[360835941,1747060889003,-544.94809669,0.00012003,2]
[360835942,1747060889035,-544.94809669,0.00012003,2]
[360835943,1747060889069,-544.94809669,0.00012003,2]
[360835944,1747060889104,-544.94809669,0.00012003,2]
[360835945,1747060889137,-544.94809669,0.00012003,2]
[360835946,1747060889171,-544.94809669,0.00012003,2]
[360835947,1747060889204,-544.94809669,0.00012003,2]
[360835948,1747060889237,-544.94809669,0.00012003,2]
[360835949,1747060889269,-544.94809669,0.00012003,2]
[360835950,1747060889300,-544.94809669,0.00012003,2]
[360835951,1747060889334,-544.94809669,0.00012003,2]
[360835952,1747060889365,-544.94809669,0.00012003,2]
[360835953,1747060889397,-544.94809669,0.00012003,2]
[360835954,1747060889432,-544.94809669,0.00012003,2]
[360835955,1747060889469,-544.94809669,0.00012003,2]
[360835956,1747060889502,-544.94809669,0.00012003,2]
[360835957,1747060889535,-544.94809669,0.00012003,2]
[360835958,1747060889566,-544.94809669,0.00012003,2]
[360835959,1747060889599,-544.94809669,0.00012003,2]
[360835960,1747060889632,-544.94809669,0.00012003,2]
[360835961,1747060889670,-544.94809669,0.00012003,2]
[360835962,1747060889704,-1288.55494004,0.00012003,2]
[360835963,1747060889741,-1288.55494004,0.00012003,2]
[360835964,1747060889777,-1288.55494004,0.00012003,2]
[360835965,1747060889813,-1288.55494004,0.00012003,2]
[360835966,1747060889846,-1288.55494004,0.00012003,2]
[360835967,1747060889880,-1288.55494004,0.00012003,2]
[360835968,1747060889917,-1288.55494004,0.00012003,2]
[360835969,1747060889953,-1288.55494004,0.00012003,2]
[360835970,1747060889986,-1288.55494004,0.00012003,2]
[360835971,1747060890018,-1288.55494004,0.00012003,2]
[360835972,1747060890052,-1288.55494004,0.00012003,2]
[360835973,1747060890087,-1288.55494004,0.00012003,2]
[360835974,1747060890120,-1288.55494004,0.00012003,2]
[360835975,1747060890329,-1288.55494004,0.00012003,2]
[360835976,1747060890365,-1288.55494004,0.00012003,2]
[360835977,1747060890402,-1288.55494004,0.00012003,2]
[360835978,1747060890436,-1288.55494004,0.00012003,2]
[360835979,1747060890469,-1288.55494004,0.00012003,2]
[360835980,1747060890502,-1288.55494004,0.00012003,2]
[360835981,1747060890535,-1288.55494004,0.00012003,2]
[360835982,1747060890568,-1288.55494004,0.00012003,2]
[360835983,1747060890603,-1288.55494004,0.00012003,2]
[360835984,1747060890635,-1288.55494004,0.00012003,2]
[360835985,1747060890676,-1288.55494004,0.00012003,2]
[360835986,1747060890708,-1288.55494004,0.00012003,2]
[360835987,1747060890741,-1288.55494004,0.00012003,2]
[360835988,1747060890773,-1288.55494004,0.00012003,2]
[360835989,1747060890804,-1288.55494004,0.00012003,2]
[360835990,1747060890840,-1288.55494004,0.00012003,2]
[360835991,1747060890873,-1274.94578951,0.00012003,2]
[360835992,1747060890909,-1274.94578951,0.00012003,2]
[360835993,1747060890942,-1274.94578951,0.00012003,2]
[360835994,1747060890975,-1274.94578951,0.00012003,2]
[360835995,1747060891014,-1274.94578951,0.00012003,2]
[360835996,1747060891050,-1274.94578951,0.00012003,2]
[360835997,1747060891086,-1274.94578951,0.00012003,2]
[360835998,1747060891120,-1274.94578951,0.00012003,2]
[360835999,1747060891156,-1274.94578951,0.00012003,2]
[360836000,1747060891191,-1274.94578951,0.00012003,2]
[360836001,1747060891227,-1274.94578951,0.00012003,2]
[360836002,1747060891263,-1274.94578951,0.00012003,2]
[360836003,1747060891298,-1274.94578951,0.00012003,2]
[360836004,1747060891332,-1274.94578951,0.00012003,2]
[360836005,1747060891367,-1274.94578951,0.00012003,2]
[360836006,1747060891404,-1274.94578951,0.00012003,2]
[360836007,1747060891437,-1274.94578951,0.00012003,2]
[360836008,1747060891470,-327.81623111,0.00012003,2]
[360836009,1747060891492,-177.46348007,0.00012004,2]
[360836010,1747060891517,-189.35750492,0.00012004,2]
[360836011,1747060891542,-323.84004939,0.00012004,2]
[360836012,1747060891566,-300.0,0.00012004,2]
[360836013,1747060891590,-250.0,0.00012006,2]
[360836014,1747060891614,-10242.67447645,0.00012031,2]
[360836015,1747060897556,-232.00399349,0.00012039,2]
[360836017,1747060904211,-108.50600651,0.00012039,2]
[360836018,1747060904238,-46.33039349,0.00012042,2]
[360836019,1747060912920,-152.30856921,0.00012042,2]
[360836020,1747060917578,449.70319426,0.000275,120]
[360836021,1747060918195,152.30856921,0.00012003,2]
[360836022,1747060919552,162.98,0.00012006,2]
[360836023,1747060927378,-237.72882043,0.00012042,2]
[360836025,1747060939978,1256.69,0.0001203,2]
[360836026,1747060940653,-272.35246577,0.00012042,2]
[360836027,1747060943933,-170.7393119,0.00012042,2]
[360836028,1747060950528,272.35246577,0.00012003,2]
[360836029,1747060957429,-194.01286359,0.00012042,2]
[360836030,1747060957458,-5.98713641,0.00012051,2]
[360836032,1747060971924,-180.71852403,0.00012051,2]
[360836034,1747060978002,-63.29433956,0.00012051,2]
[360836035,1747060978033,-103.69493085,0.00012059,2]
[360836036,1747060987889,-300.0,0.00012058,2]
[360836037,1747060987921,-21.34430512,0.00012059,2]
[360836038,1747061002937,-224.05540718,0.00012059,2]
[360836040,1747061008243,-150.90535685,0.00012059,2]
[360836041,1747061008276,-55.714289,0.00012059,2]
[360836044,1747061015184,-157.02324199,0.00012059,2]
[360836045,1747061019605,-152.0,0.00012059,2]
[360836046,1747061032852,-173.27878733,0.00012059,2]
[360836047,1747061032888,-68.34529636,0.00012059,2]
[360836049,1747061044330,237.72882043,0.00011959,2]
[360836050,1747061045639,-224.60748945,0.00012058,2]
[360836052,1747061048878,-75.39251055,0.00012058,2]
[360836053,1747061048908,-83.69569837,0.00012059,2]
[360836054,1747061062601,-184.69577847,0.00012059,2]
[360836056,1747061075007,-163.2632268,0.00012059,2]
[360836057,1747061075037,-277.53645502,0.00012059,2]
[360836059,1747061080933,-165.82,0.00012059,2]
[360836060,1747061080955,-95.23649461,0.0001206,2]
[360836062,1747061092844,-275.30198589,0.00012058,2]
[360836063,1747061108833,-182.41666944,0.00012057,2]
[360836064,1747061122421,-189.32716082,0.00012057,2]
[360836066,1747061125664,1591.26889687,0.00012036,2]
[360836067,1747061126566,-168.18210163,0.00012036,2]
[360836069,1747061132519,-384.34380536,0.00012036,2]
[360836072,1747061137368,-360.67283918,0.00012036,2]
[360836074,1747061143946,-200.0,0.00012036,2]
[360836075,1747061152312,-194.44188274,0.00012036,2]
[360836076,1747061167393,-170.7393119,0.00011957,2]
[360836077,1747061167417,-7.02578583,0.00012021,2]
[360836079,1747061172206,-257.52593268,0.00012021,2]
[360836081,1747061177007,-62.76828149,0.00012021,2]
[360836082,1747061177037,-99.24171851,0.00012036,2]
[360836083,1747061182805,-189.26964301,0.00012036,2]
[360836084,1747061197389,-183.00488394,0.00012035,2]
[360836085,1747061197421,-15.03511606,0.00012035,2]
[360836087,1747061202494,-162.01,0.00012035,2]
[360836089,1747061208628,-162.01,0.00012035,2]
[360836090,1747061215189,-284.77148748,0.00012,2]
[360836091,1747061227754,3100.0,0.000137,5]
[360836092,1747061227904,-260.03670547,0.00012,2]
[360836093,1747061229863,3900.0,0.000138,5]
[360836094,1747061231962,700.0,0.000139,5]
[360836097,1747061242005,-266.55918457,0.00012,2]
[360836099,1747061248311,-162.01,0.00012,2]
[360836103,1747061256060,-300.0,0.00012,2]
[360836104,1747061258041,-299.25104553,0.00012,2]
[360836106,1747061269892,150.0,0.00013699,7]
[360836107,1747061272338,-217.7807225,0.0001194,2]
[360836108,1747061275710,-747.2218,0.00011936,2]
[360836109,1747061275735,-381.4703235,0.0001194,2]
[360836110,1747061275760,-6607.65064857,0.00012,2]
[360836111,1747061275786,-300.0,0.00012034,2]
[360836112,1747061275821,-160.94488394,0.00012035,2]
[360836113,1747061275859,-500.0,0.00012035,2]
[360836114,1747061275893,-500.0,0.00012035,2]
[360836115,1747061275927,-500.0,0.00012035,2]
[360836116,1747061275962,-500.0,0.00012035,2]
[360836117,1747061276315,-500.0,0.00012035,2]
[360836118,1747061276347,-500.0,0.00012035,2]
[360836119,1747061276378,-500.0,0.00012035,2]
[360836120,1747061276410,-500.0,0.00012035,2]
[360836121,1747061276446,-354.83674361,0.00012035,2]
[360836122,1747061276478,-500.0,0.00012035,2]
[360836123,1747061276511,-500.0,0.00012035,2]
[360836124,1747061276541,-198.04,0.00012035,2]
[360836125,1747061276566,-20712.5791127,0.00012036,2]
[360836126,1747061276591,-5537.25648768,0.00012037,2]
[360836127,1747061287444,-250.0,0.00012037,2]
[360836128,1747061298443,1700.0,0.000137,5]
[360836129,1747061300609,2100.0,0.000138,5]
[360836130,1747061302365,-175.8605129,0.00012037,2]
[360836131,1747061302727,400.0,0.000139,5]
[360836132,1747061317376,-156.3394871,0.00012037,2]
[360836133,1747061332345,-201.6893326,0.00012036,2]
[360836134,1747061347443,-277.27688288,0.00011936,2]
[360836139,1747061362309,-213.61637939,0.00011936,2]
[360836140,1747061377378,-242.27973233,0.00011936,2]
[360836144,1747061392339,-131.0697054,0.00011936,2]
[360836145,1747061392362,-47.35703486,0.00011957,2]
[360836146,1747061407359,-128.5636319,0.00011957,2]
[360836147,1747061407382,-193.51742523,0.00012028,2]
[360836150,1747061423459,-298.11223919,0.00012028,2]
[360836152,1747061432538,-56.07813002,0.00012028,2]
[360836153,1747061432551,-298.3106674,0.00012036,2]
[360836154,1747061432564,-115.79469317,0.00012036,2]
[360836155,1747061432583,-89.47544591,0.00012036,2]
[360836156,1747061432597,-3898.16351232,0.00012037,2]
[360836157,1747061432610,-3199.2388693,0.00012055,2]
[360836158,1747061432623,-550.53,0.0001206,2]
[360836159,1747061432636,-300.0,0.00012061,2]
[360836160,1747061432649,-1200.0,0.00012062,2]
[360836161,1747061432663,-152.24,0.00012063,2]
[360836162,1747061432677,-156.19,0.00012067,2]
[360836163,1747061432690,-606.06,0.00012078,2]
[360836164,1747061432703,-490.0,0.00012084,2]
[360836165,1747061432715,-1081.68,0.00012261,2]
[360836166,1747061432728,-300.0,0.0001242,2]
[360836167,1747061432741,-167.12,0.00012421,2]
[360836168,1747061432753,-175.92066674,0.00012587,2]
[360836169,1747061432766,-205.58,0.00012651,2]
[360836170,1747061432776,-205.58,0.00012654,2]
[360836171,1747061432786,-2656.52150573,0.00012658,2]
[360836172,1747061432798,-250.0,0.00012658,2]
[360836173,1747061432810,-1668.63849427,0.00012658,2]
[360836174,1747061432821,-499.99,0.00012658,2]
[360836175,1747061432831,-205.58,0.00012658,2]
[360836176,1747061432841,-205.58,0.00012661,2]
[360836199,1747061433140,-299.99,0.00012661,2]
[360836204,1747061433184,-205.58,0.00012665,2]
[360836206,1747061433195,-205.58,0.00012668,2]
[360836208,1747061433205,-205.58,0.00012671,2]
[360836210,1747061433214,-205.58,0.00012675,2]
[360836212,1747061433225,-205.58,0.00012678,2]
[360836214,1747061433234,-205.58,0.00012681,2]
[360836216,1747061433244,-205.58,0.00012685,2]
[360836218,1747061433257,-205.58,0.00012688,2]
[360836221,1747061433269,-205.58,0.00012691,2]
[360836223,1747061433279,-205.58,0.00012695,2]
[360836225,1747061433289,-205.58,0.00012698,2]
[360836227,1747061433299,-150.0,0.00012701,2]
[360836229,1747061433308,-205.58,0.00012701,2]
[360836231,1747061433319,-205.58,0.00012705,2]
[360836233,1747061433331,-514.18,0.00012705,2]
[360836235,1747061433341,-251.44,0.00012705,2]
[360836237,1747061433351,-205.58,0.00012708,2]
[360836239,1747061433360,-205.58,0.00012711,2]
[360836241,1747061433370,-691.2,0.00012713,2]
[360836243,1747061433380,-205.58,0.00012715,2]
[360836245,1747061433390,-2751.0,0.00012731,2]
[360836247,1747061433400,-501.06905543,0.000128,2]
[360836249,1747061433410,-256.5,0.00012877,2]
[360836251,1747061433420,-167.12,0.00012934,2]
[360836253,1747061433429,-150.0,0.00012961,2]
[360836255,1747061433439,-150.0,0.00012981,2]
[360836257,1747061433448,-1000.0,0.00013147,2]
[360836259,1747061433457,-9844.9,0.000132,2]
[360836261,1747061433467,-834.89468261,0.000132,2]
[360836263,1747061433477,-270.5499,0.000132,2]
[360836265,1747061433487,-1045.5411,0.000132,2]
[360836267,1747061433496,-7270.83,0.000132,2]
[360836269,1747061433505,-150.0,0.00013202,2]
[360836271,1747061433515,-175.92066674,0.00013217,2]
[360836273,1747061433525,-8088.7662,0.00013223,2]
[360836274,1747061433534,-420.0,0.00013239,2]
[360836275,1747061433543,-250.0,0.00013241,2]
[360836276,1747061433553,-150.0,0.00013243,2]
[360836277,1747061433563,-166.68,0.00013253,2]
[360836278,1747061433576,-151.0,0.00013262,2]
[360836279,1747061433586,-156.587,0.00013262,2]
[360836280,1747061433596,-151.0,0.00013262,2]
[360836281,1747061433607,-155.0,0.00013262,2]
[360836282,1747061433617,-668.65185757,0.00013262,2]
[360836283,1747061433627,-207.4,0.00013262,2]
[360836284,1747061433637,-1000.0,0.00013267,2]
[360836285,1747061433647,-1680.0,0.00013268,2]
[360836286,1747061433657,-150.0,0.00013297,2]
[360836287,1747061433668,-9844.9,0.000133,2]
[360836288,1747061433678,-151.0,0.00013317,2]
[360836289,1747061433690,-1459.76466868,0.00013322,2]
[360836290,1747061433700,-24432.30463753,0.00013323,2]
[360836291,1747061433709,-4066.228,0.00013331,2]
[360836292,1747061433720,-151.0,0.00013372,2]
[360836293,1747061433730,-1000.0,0.00013397,2]
[360836294,1747061433742,-1606.1887,0.00013398,2]
[360836295,1747061433752,-700.0,0.000134,4]
[360836296,1747061433762,-400.0,0.000134,4]
[360836297,1747061433772,-151.0,0.00013427,2]
[360836298,1747061433781,-220.70409987,0.00013428,2]
[360836299,1747061433791,-1000.0,0.00013431,2]
[360836300,1747061433801,-2500.0,0.00013431,2]
[360836301,1747061433810,-11224.39791037,0.00013431,2]
[360836302,1747061433821,-167.12,0.00013446,2]
[360836303,1747061433835,-150.0,0.00013454,2]
[360836304,1747061433846,-150.0,0.00013459,2]
[360836305,1747061433856,-150.0,0.00013466,2]
[360836306,1747061433866,-11224.39791031,0.00013469,2]
[360836307,1747061433877,-150.0,0.00013478,2]
[360836308,1747061433887,-151.0,0.00013482,2]
[360836309,1747061433898,-38596.7022,0.00013498,2]
[360836310,1747061433908,-1500.0,0.000135,4]
[360836311,1747061433918,-800.0,0.000135,4]
[360836312,1747061433927,-11224.39791031,0.00013507,2]
[360836313,1747061433937,-162.98,0.00013507,2]
[360836314,1747061433947,-150.0,0.00013511,2]
[360836315,1747061433957,-150.0,0.00013514,2]
[360836316,1747061433967,-863.7023515,0.00013514,2]
[360836317,1747061433977,-61563.1401,0.00013531,2]
[360836318,1747061433987,-11862.2206,0.00013531,2]
[360836319,1747061433997,-340.51,0.00013544,2]
[360836320,1747061434007,-7346.83222816,0.00013545,2]
[360836321,1747061434417,-281.83700339,0.00013545,2]
[360836322,1747061434428,-449.93201453,0.00013545,2]
[360836323,1747061434447,-3145.79666423,0.00013545,2]
[360836324,1747061434458,-150.0,0.00013567,2]
[360836325,1747061434467,-11224.39791031,0.00013583,2]
[360836326,1747061434477,-150.0,0.00013586,2]
[360836327,1747061434487,-500.0,0.00013591,2]
[360836328,1747061434497,-8756.5593,0.00013591,2]
[360836329,1747061434506,-5663.7285,0.00013591,2]
[360836330,1747061434516,-8234.02942971,0.00013591,2]
[360836331,1747061434525,-281.74760412,0.00013591,2]
[360836332,1747061434534,-1000.0,0.00013597,2]
[360836333,1747061434544,-1248.8482,0.00013597,2]
[360836334,1747061434553,-4587.1324,0.00013597,2]
[360836335,1747061434562,-362.5,0.00013597,2]
[360836336,1747061434573,-3315.77316391,0.00013598,2]
[360836337,1747061434585,-2040.00004,0.00013598,2]
[360836341,1747061438126,-187.68,0.00013521,2]
[360836342,1747061438318,-123.504893,0.00013521,2]
[360836343,1747061438406,-64.175107,0.00013521,2]
[360836344,1747061438416,-187.68,0.00013521,2]
[360836345,1747061438425,-187.68,0.00013535,2]
[360836346,1747061438434,-187.68,0.00013581,2]
[360836347,1747061438443,-187.68,0.00013587,2]
[360836348,1747061438452,-187.68,0.00013588,2]
[360836349,1747061438461,-187.68,0.00013588,2]
[360836350,1747061438470,-187.68,0.0001359,2]
[360836351,1747061438479,-10998.18277221,0.00013598,2]
[360836352,1747061438497,-39037.51822388,0.00013598,2]
[360836353,1747061438506,-245.03789011,0.00013598,2]
[360836354,1747061438515,-1444.11738659,0.00013598,2]
[360836355,1747061438524,-632.1664,0.00013598,2]
[360836356,1747061438534,-1484.5255,0.00013598,2]
[360836357,1747061438543,-1145.2448,0.00013598,2]
[360836358,1747061438552,-686.6138,0.00013598,2]
[360836359,1747061438563,-2300.0,0.000136,4]
[360836360,1747061438572,-1200.0,0.000136,4]
[360836361,1747061438585,-2213.70523189,0.00013611,2]
[360836571,1747061441598,-6020.32419774,0.00013611,2]
[360836572,1747061441608,-150.0,0.00013618,2]
[360836573,1747061441618,-11224.39791031,0.0001362,2]
[360836574,1747061441628,-187.68,0.00013621,2]
[360836575,1747061441638,-150.0,0.00013628,2]
[360836576,1747061441647,-420.0,0.00013629,2]
[360836577,1747061441656,-1723.46994985,0.00013631,2]
[360836578,1747061441671,-6510.55947978,0.00013631,2]
[360836579,1747061441680,-150.0,0.0001365,2]
[360836580,1747061441689,-4199.17853994,0.00013651,2]
[360836593,1747061443051,-331.86921268,0.00013651,2]
[360836594,1747061443063,-678.57926568,0.00013651,2]
[360836595,1747061443075,-3024.40241133,0.00013651,2]
[360836596,1747061443086,-514.52734723,0.00013658,2]
[360836600,1747061444201,-1790.68889644,0.00013431,2]
[360836601,1747061444246,-1079.4577487,0.00013431,2]
[360836603,1747061444752,-33436.06905486,0.00013431,2]
[360836604,1747061444763,-206701.269,0.00013431,2]
[360836605,1747061444773,-10709.87056308,0.00013658,2]
[360836606,1747061444782,-1124.0,0.00013671,2]
[360836607,1747061444792,-8234.02942963,0.00013671,2]
[360836608,1747061444801,-500.0,0.00013673,2]
[360836609,1747061444811,-500.0,0.00013673,2]
[360836610,1747061444821,-500.0,0.00013673,2]
[360836611,1747061444831,-502.21678082,0.00013673,2]
[360836613,1747061444845,-502.78786869,0.00013673,2]
[360836615,1747061444854,-502.07680751,0.00013673,2]
[360836617,1747061444864,-500.0,0.00013673,2]
[360836619,1747061444873,-500.0,0.00013673,2]
[360836621,1747061444883,-500.0,0.00013673,2]
[360836622,1747061444893,-240.26633239,0.00013688,2]
[360836624,1747061444903,-240.26633239,0.00013689,2]
[360836626,1747061444912,-172731.6779999,0.00013691,2]
[360836627,1747061444922,-11544.7166991,0.00013691,2]
[360836628,1747061444931,-26861.9089805,0.00013691,2]
[360836629,1747061444941,-150.0,0.00013691,2]
[360836630,1747061444950,-39920.00014594,0.00013691,2]
[360836631,1747061444961,-4836.0,0.00013691,2]
[360836632,1747061444987,-5265.3587318,0.00013691,2]
[360836633,1747061444999,-12863.89535635,0.00013691,2]
[360836634,1747061445011,-88479.99999614,0.00013691,2]
[360836635,1747061445022,-16415.17910307,0.00013691,2]
[360836636,1747061445050,-8234.02942963,0.00013692,2]
[360836637,1747061445060,-11224.39791031,0.00013696,2]
[360836638,1747061445069,-300.0,0.00013697,2]
[360836639,1747061445078,-300.0,0.00013697,2]
[360836640,1747061445092,-1000.0,0.00013697,2]
[360836641,1747061445102,-1000.0,0.00013697,2]
[360836642,1747061445111,-1000.0,0.00013697,2]
[360836643,1747061445120,-626.46561682,0.00013698,2]
[360836644,1747061445129,-1449.42694017,0.00013698,2]
[360836645,1747061446202,-269496.51478835,0.00013698,2]
[360836646,1747061446212,-400.0,0.00013698,2]
[360836647,1747061446222,-400.0,0.00013698,2]
[360836648,1747061446231,-400.0,0.00013698,2]
[360836649,1747061446241,-400.0,0.00013698,2]
[360836650,1747061446251,-409.90274378,0.00013698,2]
[360836651,1747061446264,-400.96113681,0.00013698,2]
[360836652,1747061446273,-400.0,0.00013698,2]
[360836653,1747061446283,-400.0,0.00013698,2]
[360836654,1747061446292,-400.0,0.00013698,2]
[360836655,1747061446302,-401.4033102,0.00013698,2]
[360836656,1747061446311,-400.0,0.00013698,2]
[360836657,1747061446320,-400.0,0.00013698,2]
[360836658,1747061446330,-154.608435,0.00013698,2]
[360836659,1747061446344,-400.29787957,0.00013698,2]
[360836660,1747061446353,-400.0,0.00013698,2]
[360836661,1747061446362,-203.84596927,0.00013698,2]
[360836662,1747061446371,-400.0,0.00013698,2]
[360836663,1747061446380,-402.31592153,0.00013698,2]
[360836664,1747061446389,-533.66908828,0.00013698,2]
[360836665,1747061446398,-400.0,0.00013698,2]
[360836666,1747061446408,-342.07170156,0.00013698,2]
[360836667,1747061446417,-450.0,0.00013698,2]
[360836668,1747061446427,-400.0,0.00013698,2]
[360836669,1747061446436,-227.94782461,0.00013698,2]
[360836670,1747061446445,-400.0,0.00013698,2]
[360836671,1747061446454,-153.01581305,0.00013698,2]
[360836672,1747061446463,-510.25264832,0.00013698,2]
[360836673,1747061446473,-404.66331502,0.00013698,2]
[360836674,1747061446482,-1146.49,0.00013698,2]
[360836675,1747061446491,-1146.49,0.00013698,2]
[360836676,1747061446501,-1146.49,0.00013698,2]
[360836677,1747061446510,-1146.49,0.00013698,2]
[360836678,1747061446520,-1146.49,0.00013698,2]
[360836679,1747061446529,-223.15056515,0.00013698,2]
[360836680,1747061446538,-151.0,0.00013698,2]
[360836681,1747061446547,-151.0,0.00013698,2]
[360836682,1747061446556,-165.20153337,0.00013698,2]
[360836683,1747061446565,-400.0,0.00013698,2]
[360836684,1747061446575,-400.0,0.00013698,2]
[360836685,1747061446585,-451.9129048,0.00013698,2]
[360836686,1747061446594,-151.0,0.00013698,2]
[360836687,1747061446604,-400.588147,0.00013698,2]
[360836688,1747061446613,-400.0,0.00013698,2]
[360836689,1747061446622,-400.0,0.00013698,2]
[360836691,1747061446631,-400.0,0.00013698,2]
[360836692,1747061446640,-400.0,0.00013698,2]
[360836693,1747061446650,-500.0,0.00013698,2]
[360836694,1747061446660,-400.0,0.00013698,2]
[360836695,1747061446669,-400.0,0.00013698,2]
[360836696,1747061446678,-400.0,0.00013698,2]
[360836697,1747061446688,-400.0,0.00013698,2]
[360836698,1747061446698,-400.0,0.00013698,2]
[360836699,1747061446707,-400.0,0.00013698,2]
[360836700,1747061446717,-400.0,0.00013698,2]
[360836701,1747061446726,-400.0,0.00013698,2]
[360836702,1747061446736,-400.0,0.00013698,2]
[360836703,1747061446745,-238.11981765,0.00013698,2]
[360836704,1747061446754,-196.740238,0.00013698,2]
[360836705,1747061446764,-416.53762729,0.00013698,2]
[360836706,1747061446773,-400.0,0.00013698,2]
[360836707,1747061446782,-400.0,0.00013698,2]
[360836708,1747061446792,-400.0,0.00013698,2]
[360836709,1747061446801,-400.0,0.00013698,2]
[360836710,1747061446810,-400.0,0.00013698,2]
[360836711,1747061446819,-488.91793043,0.00013698,2]
[360836712,1747061446829,-151.0,0.00013698,2]
[360836713,1747061446840,-151.0,0.00013698,2]
[360836714,1747061446849,-151.0,0.00013698,2]
[360836715,1747061446859,-283.025,0.00013698,2]
[360836716,1747061446868,-317.22691947,0.00013698,2]
[360836718,1747061446878,-432.21,0.00013698,2]
[360836719,1747061446887,-403.80599055,0.00013698,2]
[360836720,1747061446896,-400.0,0.00013698,2]
[360836721,1747061446906,-400.0,0.00013698,2]
[360836722,1747061446916,-252.1,0.00013698,2]
[360836723,1747061446925,-400.0,0.00013698,2]
[360836724,1747061446934,-400.0,0.00013698,2]
[360836725,1747061446944,-400.0,0.00013698,2]
[360836726,1747061446953,-400.0,0.00013698,2]
[360836727,1747061446963,-400.0,0.00013698,2]
[360836728,1747061446972,-519.00448837,0.00013698,2]
[360836729,1747061446981,-151.0,0.00013698,2]
[360836730,1747061446990,-400.0,0.00013698,2]
[360836731,1747061446999,-401.7297543,0.00013698,2]
[360836732,1747061447009,-407.47,0.00013698,2]
[360836733,1747061447018,-151.0,0.00013698,2]
[360836734,1747061447027,-151.0,0.00013698,2]
[360836735,1747061447037,-407.47,0.00013698,2]
[360836736,1747061447046,-151.0,0.00013698,2]
[360836737,1747061447055,-407.47,0.00013698,2]
[360836738,1747061447064,-407.47,0.00013698,2]
[360836739,1747061447073,-407.47,0.00013698,2]